fUSD/lending_fUSD_20260329
["ID","MTS","AMOUNT","RATE_DAILY","PERIOD"]
[419017899,1774759838527,-284.07676272,0.00013717,2]
[419017900,1774759838537,-500.0,0.00013717,2]
[419017901,1774759838547,-500.0,0.00013717,2]
[419017902,1774759838556,-500.0,0.00013717,2]
[419017903,1774759838566,-500.0,0.00013717,2]
[419017904,1774759838576,-500.0,0.00013717,2]
[419017905,1774759838585,-153.40286809,0.00013717,2]
[419017906,1774759838595,-500.0,0.00013717,2]
[419017907,1774759838604,-500.0,0.00013717,2]
[419017908,1774759838614,-500.0,0.00013717,2]
[419017909,1774759838625,-500.0,0.00013717,2]
[419017910,1774759838635,-500.0,0.00013717,2]
[419017911,1774759838644,-500.0,0.00013717,2]
[419017912,1774759838654,-383.60720851,0.00013717,2]
[419017913,1774759838664,-200.0,0.00013718,2]
[419017914,1774759838674,-151.0,0.00013718,2]
[419017915,1774759838683,-151.0,0.00013718,2]
[419017916,1774759838693,-151.0,0.00013718,2]
[419017917,1774759838702,-151.0,0.00013718,2]
[419017918,1774759838712,-151.0,0.00013718,2]
[419017919,1774759838721,-151.0,0.00013718,2]
[419017920,1774759838731,-151.0,0.00013718,2]
[419017921,1774759838740,-151.0,0.00013718,2]
[419017922,1774759838749,-151.0,0.00013718,2]
[419017923,1774759838758,-151.0,0.00013718,2]
[419017924,1774759838768,-151.0,0.00013718,2]
[419017925,1774759838777,-150.0,0.00013719,2]
[419017926,1774759838787,-500.0,0.0001372,2]
[419017927,1774759838797,-500.0,0.0001372,2]
[419017928,1774759838807,-500.0,0.0001372,2]
[419017929,1774759838816,-500.0,0.0001372,2]
[419017930,1774759838826,-500.0,0.0001372,2]
[419017931,1774759838835,-500.0,0.0001372,2]
[419017932,1774759838844,-630.59484516,0.0001372,2]
[419017933,1774759838854,-500.0,0.0001372,2]
[419017934,1774759838864,-500.0,0.0001372,2]
[419017935,1774759838874,-500.0,0.0001372,2]
[419017936,1774759838883,-500.0,0.0001372,2]
[419017937,1774759838893,-456.50311729,0.0001372,2]
[419017938,1774759838903,-500.0,0.0001372,2]
[419017939,1774759838913,-500.0,0.0001372,2]
[419017940,1774759838922,-500.0,0.0001372,2]
[419017941,1774759838931,-500.0,0.0001372,2]
[419017942,1774759838941,-500.0,0.0001372,2]
[419017943,1774759838950,-150.0,0.0001372,2]
[419017944,1774759838959,-500.0,0.0001372,2]
[419017945,1774759838969,-151.72119789,0.0001372,2]
[419017946,1774759838979,-500.0,0.0001372,2]
[419017947,1774759838989,-500.0,0.0001372,2]
[419017948,1774759838999,-500.0,0.0001372,2]
[419017949,1774759839008,-500.0,0.0001372,2]
[419017950,1774759839018,-500.0,0.0001372,2]
[419017951,1774759839028,-482.0,0.0001372,2]
[419017952,1774759839037,-500.0,0.0001372,2]
[419017953,1774759839047,-500.0,0.0001372,2]
[419017954,1774759839057,-500.0,0.0001372,2]
[419017955,1774759839066,-500.0,0.0001372,2]
[419017956,1774759839075,-500.0,0.0001372,2]
[419017957,1774759839085,-482.0,0.0001372,2]
[419017958,1774759839095,-500.0,0.0001372,2]
[419017959,1774759839105,-500.0,0.0001372,2]
[419017960,1774759839114,-500.0,0.0001372,2]
[419017961,1774759839124,-482.0,0.0001372,2]
[419017962,1774759839133,-500.0,0.0001372,2]
[419017963,1774759839143,-500.0,0.0001372,2]
[419017964,1774759839152,-500.0,0.0001372,2]
[419017965,1774759839162,-482.0,0.0001372,2]
[419017966,1774759839172,-362.44585243,0.0001372,2]
[419017967,1774759839182,-500.0,0.0001372,2]
[419017968,1774759839191,-500.0,0.0001372,2]
[419017969,1774759839201,-482.0,0.0001372,2]
[419017970,1774759839211,-500.0,0.0001372,2]
[419017971,1774759839221,-500.0,0.0001372,2]
[419017972,1774759839231,-500.0,0.0001372,2]
[419017973,1774759839241,-482.0,0.0001372,2]
[419017974,1774759839252,-500.0,0.0001372,2]
[419017975,1774759839261,-500.0,0.0001372,2]
[419017976,1774759839271,-482.0,0.0001372,2]
[419017977,1774759839282,-500.0,0.0001372,2]
[419017978,1774759839292,-500.0,0.0001372,2]
[419017979,1774759839302,-482.0,0.0001372,2]
[419017980,1774759839312,-197.98424333,0.0001372,2]
[419017981,1774759839323,-500.0,0.0001372,2]
[419017982,1774759839333,-500.0,0.0001372,2]
[419017983,1774759839343,-150.0,0.0001372,2]
[419017984,1774759839352,-482.0,0.0001372,2]
[419017985,1774759839363,-500.0,0.0001372,2]
[419017986,1774759839373,-500.0,0.0001372,2]
[419017987,1774759839383,-500.0,0.0001372,2]
[419017988,1774759839393,-482.0,0.0001372,2]
[419017989,1774759839403,-500.0,0.0001372,2]
[419017990,1774759839412,-500.0,0.0001372,2]
[419017991,1774759839423,-500.0,0.0001372,2]
[419017992,1774759839433,-482.0,0.0001372,2]
[419017993,1774759839442,-500.0,0.0001372,2]
[419017994,1774759839452,-500.0,0.0001372,2]
[419017995,1774759839462,-500.0,0.0001372,2]
[419017996,1774759839472,-482.0,0.0001372,2]
[419017997,1774759839481,-500.0,0.0001372,2]
[419017998,1774759839491,-500.0,0.0001372,2]
[419017999,1774759839501,-500.0,0.0001372,2]
[419018000,1774759839511,-500.0,0.0001372,2]
[419018001,1774759839522,-500.0,0.0001372,2]
[419018002,1774759839533,-500.0,0.0001372,2]
[419018003,1774759839543,-500.0,0.0001372,2]
[419018004,1774759839552,-500.0,0.0001372,2]
[419018005,1774759839562,-500.0,0.0001372,2]
[419018006,1774759839573,-500.0,0.0001372,2]
[419018007,1774759839582,-482.0,0.0001372,2]
[419018008,1774759839592,-500.0,0.0001372,2]
[419018009,1774759839603,-500.0,0.0001372,2]
[419018010,1774759839613,-500.0,0.0001372,2]
[419018011,1774759839624,-500.0,0.0001372,2]
[419018012,1774759839633,-500.0,0.0001372,2]
[419018013,1774759839643,-482.0,0.0001372,2]
[419018014,1774759839652,-500.0,0.0001372,2]
[419018015,1774759839662,-500.0,0.0001372,2]
[419018016,1774759839673,-500.0,0.0001372,2]
[419018017,1774759839683,-482.0,0.0001372,2]
[419018018,1774759839693,-500.0,0.0001372,2]
[419018019,1774759839702,-500.0,0.0001372,2]
[419018020,1774759839712,-482.0,0.0001372,2]
[419018021,1774759839722,-313.21374152,0.0001372,2]
[419018022,1774759839731,-500.0,0.0001372,2]
[419018023,1774759839741,-500.0,0.0001372,2]
[419018024,1774759839751,-500.0,0.0001372,2]
[419018025,1774759839761,-500.0,0.0001372,2]
[419018026,1774759839770,-500.0,0.0001372,2]
[419018027,1774759839780,-500.0,0.0001372,2]
[419018028,1774759839791,-500.0,0.0001372,2]
[419018029,1774759839800,-500.0,0.0001372,2]
[419018030,1774759839811,-482.0,0.0001372,2]
[419018031,1774759839820,-500.0,0.0001372,2]
[419018032,1774759839830,-500.0,0.0001372,2]
[419018033,1774759839841,-500.0,0.0001372,2]
[419018034,1774759839850,-500.0,0.0001372,2]
[419018035,1774759839860,-500.0,0.0001372,2]
[419018036,1774759839870,-500.0,0.0001372,2]
[419018037,1774759839880,-600.69561953,0.0001372,2]
[419018038,1774759839891,-500.0,0.0001372,2]
[419018039,1774759839900,-500.0,0.0001372,2]
[419018040,1774759839910,-448.85541599,0.0001372,2]
[419018041,1774759839920,-500.0,0.0001372,2]
[419018043,1774759839929,-482.0,0.0001372,2]
[419018046,1774759839938,-500.0,0.0001372,2]
[419018047,1774759840060,-500.0,0.0001372,2]
[419018048,1774759840070,-150.0,0.0001372,2]
[419018049,1774759840080,-500.0,0.0001372,2]
[419018050,1774759840090,-482.0,0.0001372,2]
[419018051,1774759840100,-500.0,0.0001372,2]
[419018052,1774759840110,-354.37247743,0.0001372,2]
[419018053,1774759840120,-482.0,0.0001372,2]
[419018054,1774759840129,-704.0,0.0001372,2]
[419018055,1774759840139,-704.0,0.0001372,2]
[419018056,1774759840149,-704.0,0.0001372,2]
[419018057,1774759840158,-482.0,0.0001372,2]
[419018058,1774759840167,-704.0,0.0001372,2]
[419018059,1774759840177,-704.0,0.0001372,2]
[419018060,1774759840187,-704.0,0.0001372,2]
[419018061,1774759840196,-704.0,0.0001372,2]
[419018062,1774759840206,-704.0,0.0001372,2]
[419018063,1774759840216,-704.0,0.0001372,2]
[419018064,1774759840225,-704.0,0.0001372,2]
[419018065,1774759840234,-704.0,0.0001372,2]
[419018066,1774759840244,-704.0,0.0001372,2]
[419018067,1774759840253,-704.0,0.0001372,2]
[419018068,1774759840262,-482.0,0.0001372,2]
[419018069,1774759840271,-704.0,0.0001372,2]
[419018070,1774759840281,-704.0,0.0001372,2]
[419018071,1774759840291,-704.0,0.0001372,2]
[419018072,1774759840300,-704.0,0.0001372,2]
[419018073,1774759840309,-704.0,0.0001372,2]
[419018074,1774759840319,-482.0,0.0001372,2]
[419018075,1774759840329,-704.0,0.0001372,2]
[419018076,1774759840339,-704.0,0.0001372,2]
[419018077,1774759840349,-333.59520152,0.0001372,2]
[419018078,1774759840359,-704.0,0.0001372,2]
[419018079,1774759840368,-704.0,0.0001372,2]
[419018080,1774759840377,-150.0,0.0001372,2]
[419018081,1774759840386,-704.0,0.0001372,2]
[419018082,1774759840397,-707.6946264,0.0001372,2]
[419018083,1774759840406,-500.0,0.00013723,2]
[419018084,1774759840416,-500.0,0.00013723,2]
[419018085,1774759840426,-500.0,0.00013723,2]
[419018086,1774759840435,-500.0,0.00013723,2]
[419018087,1774759840445,-500.0,0.00013723,2]
[419018088,1774759840455,-500.0,0.00013723,2]
[419018089,1774759840465,-500.0,0.00013723,2]
[419018090,1774759840474,-500.0,0.00013723,2]
[419018091,1774759840484,-500.0,0.00013723,2]
[419018092,1774759840494,-500.0,0.00013723,2]
[419018093,1774759840504,-500.0,0.00013723,2]
[419018094,1774759840514,-500.0,0.00013723,2]
[419018095,1774759840525,-500.0,0.00013723,2]
[419018096,1774759840534,-500.0,0.00013723,2]
[419018097,1774759840543,-500.0,0.00013723,2]
[419018098,1774759840553,-500.0,0.00013723,2]
[419018099,1774759840562,-500.0,0.00013723,2]
[419018100,1774759840571,-500.0,0.00013723,2]
[419018101,1774759840580,-500.0,0.00013723,2]
[419018102,1774759840590,-500.0,0.00013723,2]
[419018103,1774759840600,-500.0,0.00013723,2]
[419018104,1774759840609,-500.0,0.00013723,2]
[419018105,1774759840619,-500.0,0.00013723,2]
[419018106,1774759840628,-500.0,0.00013723,2]
[419018107,1774759840638,-500.0,0.00013723,2]
[419018108,1774759840648,-500.0,0.00013723,2]
[419018109,1774759840657,-500.0,0.00013723,2]
[419018110,1774759840666,-500.0,0.00013723,2]
[419018111,1774759840675,-500.0,0.00013723,2]
[419018112,1774759840685,-500.0,0.00013723,2]
[419018113,1774759840694,-500.0,0.00013723,2]
[419018114,1774759840703,-500.0,0.00013723,2]
[419018115,1774759840713,-500.0,0.00013723,2]
[419018116,1774759840724,-508.56311436,0.00013723,2]
[419018117,1774759840733,-500.0,0.00013723,2]
[419018118,1774759840743,-500.0,0.00013723,2]
[419018119,1774759840753,-500.0,0.00013723,2]
[419018120,1774759840763,-500.0,0.00013723,2]
[419018121,1774759840773,-500.0,0.00013723,2]
[419018122,1774759840783,-500.0,0.00013723,2]
[419018123,1774759840793,-500.0,0.00013723,2]
[419018124,1774759840802,-483.29461098,0.00013723,2]
[419018125,1774759840812,-152.53186786,0.00013723,2]
[419018126,1774759840821,-500.0,0.00013723,2]
[419018127,1774759840831,-500.0,0.00013723,2]
[419018128,1774759840841,-580.96645017,0.00013723,2]
[419018129,1774759840851,-500.0,0.00013723,2]
[419018130,1774759840860,-500.0,0.00013723,2]
[419018131,1774759840869,-500.0,0.00013723,2]
[419018132,1774759840878,-500.0,0.00013723,2]
[419018133,1774759840889,-500.0,0.00013723,2]
[419018134,1774759840898,-500.0,0.00013723,2]
[419018135,1774759840908,-490.0,0.00013723,2]
[419018137,1774759840918,-500.0,0.00013723,2]
[419018138,1774759840927,-490.0,0.00013723,2]
[419018139,1774759840936,-503.95632491,0.00013723,2]
[419018140,1774759840945,-490.0,0.00013723,2]
[419018141,1774759840955,-490.0,0.00013723,2]
[419018142,1774759840964,-500.0,0.00013723,2]
[419018144,1774759840974,-490.0,0.00013723,2]
[419018145,1774759840983,-490.0,0.00013723,2]
[419018147,1774759840996,-490.0,0.00013723,2]
[419018148,1774759841007,-490.0,0.00013723,2]
[419018149,1774759841016,-490.0,0.00013723,2]
[419018150,1774759841027,-500.0,0.00013723,2]
[419018151,1774759841036,-490.0,0.00013723,2]
[419018152,1774759841045,-490.0,0.00013723,2]
[419018153,1774759841055,-490.0,0.00013723,2]
[419018154,1774759841064,-490.0,0.00013723,2]
[419018155,1774759841074,-490.0,0.00013723,2]
[419018156,1774759841084,-490.0,0.00013723,2]
[419018157,1774759841093,-490.0,0.00013723,2]
[419018158,1774759841103,-474.21241056,0.00013723,2]
[419018159,1774759841112,-490.0,0.00013723,2]
[419018160,1774759841122,-490.0,0.00013723,2]
[419018161,1774759841132,-490.0,0.00013723,2]
[419018162,1774759841142,-490.0,0.00013723,2]
[419018163,1774759841151,-490.0,0.00013723,2]
[419018164,1774759841161,-490.0,0.00013723,2]
[419018165,1774759841171,-490.0,0.00013723,2]
[419018166,1774759841181,-492.58098477,0.00013723,2]
[419018167,1774759841191,-500.0,0.00013726,2]
[419018168,1774759841200,-500.0,0.00013726,2]
[419018169,1774759841209,-327.14015113,0.00013726,2]
[419018171,1774759841218,-156.35128686,0.00013726,2]
[419018173,1774759841228,-500.0,0.00013726,2]
[419018174,1774759841237,-500.0,0.00013726,2]
[419018176,1774759841247,-500.0,0.00013726,2]
[419018178,1774759841256,-500.0,0.00013726,2]
[419018180,1774759841265,-500.0,0.00013726,2]
[419018181,1774759841275,-500.0,0.00013726,2]
[419018182,1774759841284,-500.0,0.00013726,2]
[419018183,1774759841294,-500.0,0.00013726,2]
[419018184,1774759841303,-500.0,0.00013726,2]
[419018185,1774759841313,-500.0,0.00013726,2]
[419018186,1774759841323,-500.0,0.00013726,2]
[419018187,1774759841334,-500.0,0.00013726,2]
[419018188,1774759841343,-182.16957206,0.00013726,2]
[419018189,1774759841353,-500.0,0.00013726,2]
[419018190,1774759841362,-206.13980161,0.00013726,2]
[419018191,1774759841372,-150.0,0.00013726,2]
[419018192,1774759841381,-154.31995128,0.00013726,2]
[419018193,1774759841391,-500.0,0.00013726,2]
[419018194,1774759841400,-500.0,0.00013726,2]
[419018195,1774759841410,-390.7556468,0.00013726,2]
[419018196,1774759841419,-150.0,0.00013726,2]
[419018197,1774759841428,-500.0,0.00013726,2]
[419018198,1774759841438,-216.9963302,0.00013726,2]
[419018199,1774759841447,-500.0,0.00013726,2]
[419018200,1774759841457,-500.0,0.00013726,2]
[419018201,1774759841466,-500.0,0.00013726,2]
[419018202,1774759841476,-500.0,0.00013726,2]
[419018203,1774759841486,-353.36335448,0.00013726,2]
[419018204,1774759841496,-500.0,0.00013726,2]
[419018205,1774759841506,-500.0,0.00013726,2]
[419018206,1774759841516,-500.0,0.00013726,2]
[419018207,1774759841525,-500.0,0.00013726,2]
[419018208,1774759841535,-150.0,0.00013726,2]
[419018209,1774759841545,-500.0,0.00013726,2]
[419018210,1774759841555,-521.46914168,0.00013726,2]
[419018211,1774759841565,-207.71494983,0.00013726,2]
[419018212,1774759841574,-587.5,0.00013726,2]
[419018213,1774759841584,-150.99,0.00013726,2]
[419018214,1774759841593,-9999.99,0.00013726,2]
[419018215,1774759841602,-299.99,0.00013726,2]
[419018216,1774759841612,-3857.25,0.00013726,2]
[419018217,1774759841622,-503.47318171,0.00013726,2]
[419018218,1774759841632,-150.99,0.00013726,2]
[419018219,1774759841641,-500.0,0.00013773,2]
[419018220,1774759841650,-500.0,0.00013773,2]
[419018221,1774759841659,-500.0,0.00013773,2]
[419018222,1774759841669,-429.85911728,0.00013773,2]
[419018223,1774759841678,-500.0,0.00013773,2]
[419018224,1774759841687,-500.0,0.00013773,2]
[419018225,1774759841697,-500.0,0.00013773,2]
[419018226,1774759841706,-500.0,0.00013773,2]
[419018227,1774759841716,-500.0,0.00013773,2]
[419018228,1774759841726,-500.0,0.00013773,2]
[419018229,1774759841736,-166.66,0.00013797,2]
[419018230,1774759841746,-9820.89885421,0.00013798,2]
[419018231,1774759841757,-315.99,0.00013799,2]
[419018232,1774759841767,-150.0,0.000138,2]
[419018233,1774759841776,-150.10806744,0.000138,2]
[419018234,1774759841786,-182.0,0.00013863,2]
[419018235,1774759841795,-820.1314,0.00013887,2]
[419018236,1774759841805,-2500.0,0.00013887,2]
[419018237,1774759841815,-417.16662784,0.00013898,2]
[419018238,1774759841824,-33382.30864608,0.00013898,2]
[419018239,1774759841835,-181.87716089,0.00013898,2]
[419018240,1774759841844,-183.50106687,0.00013898,2]
[419018241,1774759841854,-1127.42271707,0.00013898,2]
[419018242,1774759841863,-154.00708367,0.000139,2]
[419018243,1774759841873,-500.0,0.00013973,2]
[419018244,1774759841882,-500.0,0.00013973,2]
[419018245,1774759841892,-164.64289673,0.00013973,2]
[419018246,1774759841901,-500.61251814,0.00013973,2]
[419018247,1774759841911,-500.0,0.00013973,2]
[419018248,1774759841921,-500.11753077,0.00013973,2]
[419018249,1774759841930,-9692.7512445,0.00013973,2]
[419018250,1774759841940,-4566.50840311,0.00013986,2]
[419018251,1774759841950,-500.0,0.00013986,2]
[419018252,1774759841960,-500.0,0.00013986,2]
[419018253,1774759841969,-500.0,0.00013986,2]
[419018254,1774759841978,-500.0,0.00013986,2]
[419018255,1774759841988,-150.16805847,0.00013986,2]
[419018256,1774759841998,-500.0,0.00013986,2]
[419018257,1774759842007,-500.0,0.00013986,2]
[419018258,1774759842018,-500.0,0.00013986,2]
[419018259,1774759842027,-1476.04,0.00014,2]
[419018260,1774759842037,-215.52,0.00014,2]
[419018261,1774759842047,-192.98,0.00014,2]
[419018262,1774759842057,-189.18,0.00014,2]
[419018263,1774759842066,-513.0,0.00014,2]
[419018264,1774759842076,-9820.89885415,0.0001402,2]
[419018265,1774759842087,-192.7277889,0.00014063,2]
[419018266,1774759842201,-1500000.0,0.00014073,2]
[419018267,1774759842211,-500.0,0.00014073,2]
[419018268,1774759842220,-165.20736909,0.00014073,2]
[419018269,1774759842230,-500.0,0.00014073,2]
[419018270,1774759842239,-500.0,0.00014073,2]
[419018271,1774759842249,-500.0,0.00014073,2]
[419018272,1774759842258,-500.0,0.00014073,2]
[419018273,1774759842268,-502.54797101,0.00014073,2]
[419018274,1774759842278,-500.0,0.00014073,2]
[419018275,1774759842288,-500.0,0.00014073,2]
[419018276,1774759842297,-303.4827321,0.00014073,2]
[419018277,1774759842307,-161.75757125,0.00014073,2]
[419018278,1774759842317,-500.0,0.00014073,2]
[419018279,1774759842327,-163.45026092,0.00014073,2]
[419018280,1774759842336,-337.48789903,0.00014073,2]
[419018281,1774759842346,-500.0,0.00014073,2]
[419018282,1774759842355,-500.0,0.00014073,2]
[419018283,1774759842365,-500.0,0.00014073,2]
[419018284,1774759842375,-500.0,0.00014073,2]
[419018285,1774759842385,-500.0,0.00014073,2]
[419018286,1774759842394,-500.0,0.00014073,2]
[419018287,1774759842404,-501.46955268,0.00014073,2]
[419018288,1774759842413,-500.0,0.00014073,2]
[419018289,1774759842423,-500.0,0.00014073,2]
[419018290,1774759842432,-500.0,0.00014073,2]
[419018291,1774759842442,-500.0,0.00014073,2]
[419018292,1774759842451,-500.0,0.00014073,2]
[419018293,1774759842460,-500.0,0.00014073,2]
[419018294,1774759842469,-501.85734539,0.00014073,2]
[419018295,1774759842479,-163.64213874,0.00014073,2]
[419018296,1774759842488,-162.92469163,0.00014073,2]
[419018297,1774759842497,-500.79800767,0.00014073,2]
[419018298,1774759842507,-164.20203145,0.00014073,2]
[419018299,1774759842516,-500.0,0.00014073,2]
[419018300,1774759842526,-351.8619564,0.00014073,2]
[419018301,1774759842535,-500.0,0.00014073,2]
[419018302,1774759842544,-500.48512281,0.00014073,2]
[419018303,1774759842554,-500.0,0.00014073,2]
[419018304,1774759842564,-501.2412305,0.00014073,2]
[419018305,1774759842573,-160.27279954,0.00014073,2]
[419018306,1774759842583,-501.46140493,0.00014073,2]
[419018307,1774759842593,-166.65702548,0.00014073,2]
[419018308,1774759842602,-500.0,0.00014073,2]
[419018309,1774759842612,-518.51040499,0.00014073,2]
[419018310,1774759842621,-500.0,0.00014073,2]
[419018311,1774759842630,-315.99,0.00014073,2]
[419018312,1774759842640,-33382.30864607,0.00014109,2]
[419018313,1774759842649,-1000.0,0.00014173,2]
[419018314,1774759842659,-417.16662779,0.00014232,2]
[419018315,1774759842669,-166.66,0.00014238,2]
[419018316,1774759842679,-9820.89885415,0.00014243,2]
[419018317,1774759842688,-200.0,0.00014266,2]
[419018318,1774759842698,-500.0,0.00014272,2]
[419018319,1774759842708,-500.0,0.00014272,2]
[419018320,1774759842718,-500.0,0.00014272,2]
[419018321,1774759842727,-500.0,0.00014272,2]
[419018323,1774759842737,-500.0,0.00014272,2]
[419018325,1774759842747,-500.0,0.00014272,2]
[419018327,1774759842756,-500.0,0.00014272,2]
[419018328,1774759842765,-312.61062743,0.00014272,2]
[419018329,1774759842775,-500.0,0.00014272,2]
[419018330,1774759842784,-500.0,0.00014272,2]
[419018331,1774759842793,-1000.0,0.00014321,2]
[419018332,1774759842803,-501.32363081,0.00014321,2]
[419018333,1774759842812,-1000.0,0.00014321,2]
[419018334,1774759842821,-33382.30864607,0.00014321,2]
[419018335,1774759842831,-315.99,0.00014347,2]
[419018336,1774759842840,-9692.75124446,0.00014358,2]
[419018338,1774759842849,-683.37,0.00014384,2]
[419018340,1774759842859,-1680.0,0.00014425,2]
[419018342,1774759842869,-600.0,0.00014425,2]
[419018343,1774759842878,-600.0,0.00014425,2]
[419018344,1774759842888,-600.0,0.00014425,2]
[419018345,1774759842897,-600.0,0.00014425,2]
[419018346,1774759842907,-600.0,0.00014425,2]
[419018347,1774759842916,-2500.0,0.00014425,2]
[419018348,1774759842925,-2500.0,0.00014425,2]
[419018349,1774759842934,-2500.0,0.00014425,2]
[419018350,1774759842943,-2500.0,0.00014425,2]
[419018351,1774759842954,-2500.0,0.00014425,2]
[419018352,1774759842963,-300.0,0.00014425,2]
[419018353,1774759842973,-300.0,0.00014425,2]
[419018354,1774759842983,-300.0,0.00014425,2]
[419018355,1774759842992,-300.0,0.00014425,2]
[419018356,1774759843002,-300.0,0.00014425,2]
[419018357,1774759843011,-500.0,0.00014425,2]
[419018358,1774759843021,-500.0,0.00014425,2]
[419018359,1774759843031,-500.0,0.00014425,2]
[419018360,1774759843040,-500.0,0.00014425,2]
[419018361,1774759843050,-500.0,0.00014425,2]
[419018362,1774759843060,-200.0,0.00014425,2]
[419018363,1774759843070,-200.0,0.00014425,2]
[419018364,1774759843081,-200.0,0.00014425,2]
[419018365,1774759843091,-200.0,0.00014425,2]
[419018366,1774759843101,-200.35838575,0.00014425,2]
[419018367,1774759843113,-250.0,0.00014425,2]
[419018368,1774759843123,-9820.89885415,0.00014465,2]
[419018369,1774759843133,-154.53434814,0.00014483,2]
[419018370,1774759843143,-1000.0,0.00014521,2]
[419018371,1774759843155,-200.0,0.00014529,2]
[419018372,1774759843166,-33382.30864607,0.00014532,2]
[419018373,1774759843175,-417.16662779,0.00014565,2]
[419018374,1774759843185,-160.0,0.00014587,2]
[419018375,1774759843195,-959.8630956,0.00014587,2]
[419018376,1774759843206,-500.0,0.00014603,2]
[419018377,1774759843216,-1000.0,0.00014621,2]
[419018378,1774759843226,-1000.0,0.00014621,2]
[419018379,1774759843236,-1000.0,0.00014621,2]
[419018380,1774759843245,-1000.0,0.00014621,2]
[419018381,1774759843256,-1000.0,0.00014621,2]
[419018382,1774759843266,-1001.92036949,0.00014621,2]
[419018383,1774759843276,-679.35577738,0.00014621,2]
[419018384,1774759843285,-1000.0,0.00014621,2]
[419018385,1774759843296,-501.26333658,0.00014621,2]
[419018386,1774759843305,-502.07720266,0.00014621,2]
[419018387,1774759843314,-1000.0,0.00014621,2]
[419018388,1774759843324,-1000.0,0.00014621,2]
[419018389,1774759843334,-1000.0,0.00014621,2]
[419018390,1774759843344,-1000.0,0.00014621,2]
[419018391,1774759843354,-374.86231475,0.00014621,2]
[419018392,1774759843363,-875.52475925,0.00014621,2]
[419018393,1774759843373,-1000.0,0.00014621,2]
[419018394,1774759843384,-1000.0,0.00014621,2]
[419018395,1774759843393,-1003.48505181,0.00014621,2]
[419018396,1774759843403,-1000.0,0.00014621,2]
[419018397,1774759843412,-501.59458687,0.00014621,2]
[419018398,1774759843422,-1000.0,0.00014621,2]
[419018399,1774759843431,-1000.0,0.00014621,2]
[419018400,1774759843441,-1000.0,0.00014621,2]
[419018401,1774759843450,-1003.11755698,0.00014621,2]
[419018402,1774759843460,-315.99,0.00014621,2]
[419018403,1774759843470,-166.66,0.00014679,2]
[419018404,1774759843480,-9820.89885415,0.00014688,2]
[419018405,1774759843490,-33382.30864607,0.00014743,2]
[419018406,1774759843500,-9692.75124446,0.00014744,2]
[419018407,1774759843510,-200.0,0.00014814,2]
[419018408,1774759843520,-255.0,0.0001483,2]
[419018409,1774759843530,-1245.04491428,0.00014868,2]
[419018410,1774759843540,-510.62550353,0.00014868,2]
[419018411,1774759843550,-316.02449854,0.00014895,2]
[419018412,1774759843560,-417.16662779,0.00014899,2]
[419018413,1774759843570,-181.87716088,0.00014899,2]
[419018414,1774759843580,-183.50106686,0.00014899,2]
[419018415,1774759843590,-1127.42271707,0.00014899,2]